Workbook

Sheet Summary
B3: Picks | C3: Selections | D3: W | E3: L | F3: S/R | G3: Plays | H3: Days | I3: Ave Plays | J3: Ave Odds
D4: =SUM(IF(Picks!$F$2:$F$1001="Y",1,0)) -> 35 | E4: =SUM(IF(Picks!$F$2:$F$1001="N",1,0)) -> 71 | F4: =IF(SUM(D4:E4)>0,D4/SUM(D4:E4),0) -> 0.3301886792 | G4: =SUM(IF(Picks!$B$2:$B$1001<>"",1,0)) -> 85 | H4: =SUM(IF(Picks!$K$2:$K$1001="Y",1,0)) -> 12 | I4: =IF(H4>0,ROUND(G4/H4,0),0) -> 7 | J4: =IF(D4>0,SUM(IF(Picks!$F$2:$F$1001="Y",Picks!$E$2:$E$1001,0))/D4,0) -> 2.755714286
C6: Rising Floor | D6: Initial Bank | E6: Current | F6: Growth | G6: Stakes | H6: ROI | I6: Ave Plays
D7: 1000 | E7: =Picks!$H$1001 -> 1416.7 | F7: =(E7-D7)/D7 -> 0.4167 | G7: =SUM(IF(Picks!$F$2:$F$1001<>"",Picks!$D$2:$D$1001,0)) -> 1486 | H7: =IF(G7>0,(Picks!$H$1001-D7)/G7,0) -> 0.2804172275 | I7: 5
C9: Even Stakes | D9: Initial Bank | E9: Current | F9: Growth | G9: Stakes | H9: ROI
D10: =D7 -> 1000 | E10: =IF(SUM(D4:E4)>0,D7+(D4*(J4-1)-E4)*G10/SUM(D4:E4),D7) -> 866.1198113 | F10: =(E10-D7)/D7 -> -0.1338801887 | G10: =G7 -> 1486 | H10: =IF(G10>0,(E10-D7)/G10,0) -> -0.09009433962
C12: Fixed Stakes | D12: Initial Bank | E12: Current | F12: Growth | G12: Stakes | H12: ROI
D13: =D10 -> 1000 | E13: =IF(SUM(D4:E4)>0,D13+(D4*(J4-1)-E4)*(G13/SUM(D4:E4)),D13) -> 904.5 | F13: =(E13-D10)/D10 -> -0.0955 | G13: =SUM(IF(Picks!$F$2:$F$1001<>"",1,0)*1%*D10) -> 1060 | H13: =IF(G13>0,(E13-D10)/G13,0) -> -0.09009433962
B17: Spreadsheet Operation: Summary Worksheet Currently set up for an initial bank
B18: of 1000 units (cell D7) and with a divisor/ average plays;
B19: loss recovery setting of 5 (cell I7) - simply amend these to
B20: suit.
B22: All cells shaded in yellow should be left untouched.
B24: Note that the choice of divisor setting depends on a number of factors including
B25: your strike rate, typical number of plays per day, attitude to risk,
B26: typical odds of selections, however a setting of between 6 and 10
B27: is usually a good starting point - if in doubt the best approach is to
B28: paper trade for a period and then review which setting would have
B29: produced the best profit without hitting the 5% cap on stake size, then
B30: use this value or this value plus one or two for safety.
B32: Selections Worksheet; Initially bets will be at 1% of the current floor value
B33: (equal to starting bank) and are calculated once per day, such that on
B34: days with multiple selections you will be staking the same on each
B35: selection. If you make a profit that day the next set of stakes will
B36: again be at 1% of the floor value (although this will now be a larger
B37: monetary figure as the floor will have risen to the level of the now
B38: larger bank).
B40: If you make a loss, the stakes for the next set of
B41: selections are calculated as follows 1% of floor + (floor - current bank)
B42: "average plays" setting, subject to a maximum value of 5% of current bank.
B44: Simply enter the details of each bet in columns B and C,
B45: the price in column E and use the stake calculated in column D.
B46: Enter "Y" & "N" or "-" in column F and the stake for the next bet
B47: and the various elements of Chart graphs will be
B48: automatically (re-)calculated.

Sheet Picks
A1: # | B1: Date | C1: Selection | D1: Stake | E1: Odds | F1: Win | G1: Return | H1: Bank | I1: Count | J1: Floor | K1: New | L1: Stakes | M1: Notes
A2: 1 | B2: 2013-01-01 | D2: =Summary!D7*1% -> 10 | E2: 2.5 | F2: =IF(E2>0,"Y","N") -> Y | G2: =IF(F2="Y",D2*(E2-1),IF(F2="N",-D2,0)) -> 15 | H2: =SUM(Summary!D7,G2) -> 1015 | I2: =IF(B2<>"",IF(B2<>"-",1,I1+1),"") -> 1 | J2: =Summary!D7 -> 1000 | K2: =IF(B2<>"","Y","") -> Y | L2: =IF(D2<>0,D2/H2,"") -> 0.009852216749
A3: 2 | B3: 2013-01-01 | D3: =IF(B3<>"",IF(B3<>B2,ROUNDUP(MIN(1%*J3+(J3-H2)/Summary!$I$7,5%*H2),0),D2),0) -> 10 | F3: N | G3: -10 | H3: =SUM(H2,G3) -> 1005 | I3: =IF(B3<>"",IF(B3<>B2,1,I2+1),"") -> 2 | J3: =IF(B3<>"",IF(K3="",J2,IF((H2-J2)/H2<-0.5,MAX(H2,Summary!$D$7),MAX(H2,J2))),"") -> 1000 | K3: =IF(AND(B3<>"",B3<>B2),"Y","") ->  | L3: =IF(D3<>0,D3/H3,"") -> 0.009950248756
A4: 3 | B4: 2013-01-01 | D4: =IF(B4<>"",IF(B4<>B3,ROUNDUP(MIN(1%*J4+(J4-H3)/Summary!$I$7,5%*H3),0),D3),0) -> 10 | E4: 1.3 | F4: Y | G4: 3 | H4: 1008 | I4: 3 | J4: =IF(B4<>"",IF(K4="",J3,IF((H3-J3)/H3<-0.5,MAX(H3,Summary!$D$7),MAX(H3,J3))),"") -> 1000 | L4: =IF(D4<>0,D4/H4,"") -> 0.009920634921
A5: 4 | B5: 2013-01-01 | D5: =IF(B5<>"",IF(B5<>B4,ROUNDUP(MIN(1%*J5+(J5-H4)/Summary!$I$7,5%*H4),0),D4),0) -> 10 | F5: N | G5: -10 | H5: 998 | I5: 4 | J5: =IF(B5<>"",IF(K5="",J4,IF((H4-J4)/H4<-0.5,MAX(H4,Summary!$D$7),MAX(H4,J4))),"") -> 1000 | L5: 0.01002004008
A6: 5 | B6: 2013-01-01 | D6: =IF(B6<>"",IF(B6<>B5,ROUNDUP(MIN(1%*J6+(J6-H5)/Summary!$I$7,5%*H5),0),D5),0) -> 10 | F6: N | G6: -10 | H6: 988 | I6: 5 | J6: =IF(B6<>"",IF(K6="",J5,IF((H5-J5)/H5<-0.5,MAX(H5,Summary!$D$7),MAX(H5,J5))),"") -> 1000 | L6: 0.01012145749
A7: 6 | B7: 2013-01-02 | D7: =IF(B7<>"",IF(B7<>B6,ROUNDUP(MIN(1%*J7+(J7-H6)/Summary!$I$7,5%*H6),0),D6),0) -> 13 | E7: 1.8 | F7: Y | G7: 10.4 | H7: 998.4 | I7: 1 | J7: =IF(B7<>"",IF(K7="",J6,IF((H6-J6)/H6<-0.5,MAX(H6,Summary!$D$7),MAX(H6,J6))),"") -> 1000 | K7: Y | L7: 0.01302083333
A8: 7 | B8: 2013-01-02 | D8: =IF(B8<>"",IF(B8<>B7,ROUNDUP(MIN(1%*J8+(J8-H7)/Summary!$I$7,5%*H7),0),D7),0) -> 13 | F8: N | G8: -13 | H8: 985.4 | I8: 2 | J8: =IF(B8<>"",IF(K8="",J7,IF((H7-J7)/H7<-0.5,MAX(H7,Summary!$D$7),MAX(H7,J7))),"") -> 1000 | L8: 0.01319261214
A9: 8 | B9: 2013-01-02 | D9: =IF(B9<>"",IF(B9<>B8,ROUNDUP(MIN(1%*J9+(J9-H8)/Summary!$I$7,5%*H8),0),D8),0) -> 13 | E9: 4.6 | F9: Y | G9: 46.8 | H9: 1032.2 | I9: 3 | J9: =IF(B9<>"",IF(K9="",J8,IF((H8-J8)/H8<-0.5,MAX(H8,Summary!$D$7),MAX(H8,J8))),"") -> 1000 | L9: 0.01259445844
A10: 9 | B10: 2013-01-02 | D10: =IF(B10<>"",IF(B10<>B9,ROUNDUP(MIN(1%*J10+(J10-H9)/Summary!$I$7,5%*H9),0),D9),0) -> 13 | E10: 1.8 | F10: Y | G10: 10.4 | H10: 1042.6 | I10: 4 | J10: =IF(B10<>"",IF(K10="",J9,IF((H9-J9)/H9<-0.5,MAX(H9,Summary!$D$7),MAX(H9,J9))),"") -> 1000 | L10: 0.01246882793
A11: 10 | B11: 2013-01-02 | D11: =IF(B11<>"",IF(B11<>B10,ROUNDUP(MIN(1%*J11+(J11-H10)/Summary!$I$7,5%*H10),0),D10),0) -> 13 | F11: N | G11: -13 | H11: 1029.6 | I11: 5 | J11: =IF(B11<>"",IF(K11="",J10,IF((H10-J10)/H10<-0.5,MAX(H10,Summary!$D$7),MAX(H10,J10))),"") -> 1000 | L11: 0.01262626263
A12: 11 | B12: 2013-01-02 | D12: =IF(B12<>"",IF(B12<>B11,ROUNDUP(MIN(1%*J12+(J12-H11)/Summary!$I$7,5%*H11),0),D11),0) -> 13 | F12: N | G12: -13 | H12: 1016.6 | I12: 6 | J12: =IF(B12<>"",IF(K12="",J11,IF((H11-J11)/H11<-0.5,MAX(H11,Summary!$D$7),MAX(H11,J11))),"") -> 1000 | L12: 0.01278772379
A13: 12 | B13: 2013-01-02 | D13: =IF(B13<>"",IF(B13<>B12,ROUNDUP(MIN(1%*J13+(J13-H12)/Summary!$I$7,5%*H12),0),D12),0) -> 13 | F13: N | G13: -13 | H13: 1003.6 | I13: 7 | J13: =IF(B13<>"",IF(K13="",J12,IF((H12-J12)/H12<-0.5,MAX(H12,Summary!$D$7),MAX(H12,J12))),"") -> 1000 | L13: 0.01295336788
A14: 13 | B14: 2013-01-02 | D14: =IF(B14<>"",IF(B14<>B13,ROUNDUP(MIN(1%*J14+(J14-H13)/Summary!$I$7,5%*H13),0),D13),0) -> 13 | E14: 6.5 | F14: Y | G14: 71.5 | H14: 1075.1 | I14: 8 | J14: =IF(B14<>"",IF(K14="",J13,IF((H13-J13)/H13<-0.5,MAX(H13,Summary!$D$7),MAX(H13,J13))),"") -> 1000 | L14: 0.01209189843
A15: 14 | B15: 2013-01-02 | D15: =IF(B15<>"",IF(B15<>B14,ROUNDUP(MIN(1%*J15+(J15-H14)/Summary!$I$7,5%*H14),0),D14),0) -> 13 | E15: 1.6 | F15: Y | G15: 7.8 | H15: 1082.9 | I15: 9 | J15: =IF(B15<>"",IF(K15="",J14,IF((H14-J14)/H14<-0.5,MAX(H14,Summary!$D$7),MAX(H14,J14))),"") -> 1000 | L15: 0.01200480192
A16: 15 | B16: 2013-01-03 | D16: =IF(B16<>"",IF(B16<>B15,ROUNDUP(MIN(1%*J16+(J16-H15)/Summary!$I$7,5%*H15),0),D15),0) -> 11 | F16: N | G16: -11 | H16: 1071.9 | I16: 1 | J16: =IF(B16<>"",IF(K16="",J15,IF((H15-J15)/H15<-0.5,MAX(H15,Summary!$D$7),MAX(H15,J15))),"") -> 1082.9 | K16: Y | L16: 0.01026215132
A17: 16 | B17: 2013-01-03 | D17: =IF(B17<>"",IF(B17<>B16,ROUNDUP(MIN(1%*J17+(J17-H16)/Summary!$I$7,5%*H16),0),D16),0) -> 11 | F17: N | G17: -11 | H17: 1060.9 | I17: 2 | J17: =IF(B17<>"",IF(K17="",J16,IF((H16-J16)/H16<-0.5,MAX(H16,Summary!$D$7),MAX(H16,J16))),"") -> 1082.9 | L17: 0.010368555
A18: 17 | B18: 2013-01-03 | D18: =IF(B18<>"",IF(B18<>B17,ROUNDUP(MIN(1%*J18+(J18-H17)/Summary!$I$7,5%*H17),0),D17),0) -> 11 | F18: N | G18: -11 | H18: 1049.9 | I18: 3 | J18: =IF(B18<>"",IF(K18="",J17,IF((H17-J17)/H17<-0.5,MAX(H17,Summary!$D$7),MAX(H17,J17))),"") -> 1082.9 | L18: 0.0104771883
A19: 18 | B19: 2013-01-03 | D19: =IF(B19<>"",IF(B19<>B18,ROUNDUP(MIN(1%*J19+(J19-H18)/Summary!$I$7,5%*H18),0),D18),0) -> 11 | F19: N | G19: -11 | H19: 1038.9 | I19: 4 | J19: =IF(B19<>"",IF(K19="",J18,IF((H18-J18)/H18<-0.5,MAX(H18,Summary!$D$7),MAX(H18,J18))),"") -> 1082.9 | L19: 0.01058812205
A20: 19 | B20: 2013-01-03 | D20: =IF(B20<>"",IF(B20<>B19,ROUNDUP(MIN(1%*J20+(J20-H19)/Summary!$I$7,5%*H19),0),D19),0) -> 11 | E20: 2.9 | F20: Y | G20: 20.9 | H20: 1059.8 | I20: 5 | J20: =IF(B20<>"",IF(K20="",J19,IF((H19-J19)/H19<-0.5,MAX(H19,Summary!$D$7),MAX(H19,J19))),"") -> 1082.9 | L20: 0.01037931685
A21: 20 | B21: 2013-01-04 | D21: =IF(B21<>"",IF(B21<>B20,ROUNDUP(MIN(1%*J21+(J21-H20)/Summary!$I$7,5%*H20),0),D20),0) -> 16 | F21: N | G21: -16 | H21: 1043.8 | I21: 1 | J21: =IF(B21<>"",IF(K21="",J20,IF((H20-J20)/H20<-0.5,MAX(H20,Summary!$D$7),MAX(H20,J20))),"") -> 1082.9 | K21: Y | L21: 0.01532860701
A22: 21 | B22: 2013-01-04 | D22: =IF(B22<>"",IF(B22<>B21,ROUNDUP(MIN(1%*J22+(J22-H21)/Summary!$I$7,5%*H21),0),D21),0) -> 16 | F22: N | G22: -16 | H22: 1027.8 | I22: 2 | J22: =IF(B22<>"",IF(K22="",J21,IF((H21-J21)/H21<-0.5,MAX(H21,Summary!$D$7),MAX(H21,J21))),"") -> 1082.9 | L22: 0.01556723098
A23: 22 | B23: 2013-01-04 | D23: =IF(B23<>"",IF(B23<>B22,ROUNDUP(MIN(1%*J23+(J23-H22)/Summary!$I$7,5%*H22),0),D22),0) -> 16 | E23: 1.4 | F23: Y | G23: 6.4 | H23: 1034.2 | I23: 3 | J23: =IF(B23<>"",IF(K23="",J22,IF((H22-J22)/H22<-0.5,MAX(H22,Summary!$D$7),MAX(H22,J22))),"") -> 1082.9 | L23: 0.01547089538
A24: 23 | B24: 2013-01-04 | D24: =IF(B24<>"",IF(B24<>B23,ROUNDUP(MIN(1%*J24+(J24-H23)/Summary!$I$7,5%*H23),0),D23),0) -> 16 | F24: N | G24: -16 | H24: 1018.2 | I24: 4 | J24: =IF(B24<>"",IF(K24="",J23,IF((H23-J23)/H23<-0.5,MAX(H23,Summary!$D$7),MAX(H23,J23))),"") -> 1082.9 | L24: 0.01571400511
A25: 24 | B25: 2013-01-04 | D25: =IF(B25<>"",IF(B25<>B24,ROUNDUP(MIN(1%*J25+(J25-H24)/Summary!$I$7,5%*H24),0),D24),0) -> 16 | E25: 2 | F25: Y | G25: 16 | H25: 1034.2 | I25: 5 | J25: =IF(B25<>"",IF(K25="",J24,IF((H24-J24)/H24<-0.5,MAX(H24,Summary!$D$7),MAX(H24,J24))),"") -> 1082.9 | L25: 0.01547089538
A26: 25 | B26: 2013-01-04 | D26: =IF(B26<>"",IF(B26<>B25,ROUNDUP(MIN(1%*J26+(J26-H25)/Summary!$I$7,5%*H25),0),D25),0) -> 16 | E26: 5.3 | F26: Y | G26: 68.8 | H26: 1103 | I26: 6 | J26: =IF(B26<>"",IF(K26="",J25,IF((H25-J25)/H25<-0.5,MAX(H25,Summary!$D$7),MAX(H25,J25))),"") -> 1082.9 | L26: 0.01450589302
A27: 26 | B27: 2013-01-05 | D27: =IF(B27<>"",IF(B27<>B26,ROUNDUP(MIN(1%*J27+(J27-H26)/Summary!$I$7,5%*H26),0),D26),0) -> 12 | E27: 2 | F27: Y | G27: 12 | H27: 1115 | I27: 1 | J27: =IF(B27<>"",IF(K27="",J26,IF((H26-J26)/H26<-0.5,MAX(H26,Summary!$D$7),MAX(H26,J26))),"") -> 1103 | K27: Y | L27: 0.01076233184
A28: 27 | B28: 2013-01-05 | D28: =IF(B28<>"",IF(B28<>B27,ROUNDUP(MIN(1%*J28+(J28-H27)/Summary!$I$7,5%*H27),0),D27),0) -> 12 | E28: 1.3 | F28: Y | G28: 3.6 | H28: 1118.6 | I28: 2 | J28: =IF(B28<>"",IF(K28="",J27,IF((H27-J27)/H27<-0.5,MAX(H27,Summary!$D$7),MAX(H27,J27))),"") -> 1103 | L28: 0.01072769533
A29: 28 | B29: 2013-01-05 | D29: =IF(B29<>"",IF(B29<>B28,ROUNDUP(MIN(1%*J29+(J29-H28)/Summary!$I$7,5%*H28),0),D28),0) -> 12 | E29: 1.75 | F29: Y | G29: 9 | H29: 1127.6 | I29: 3 | J29: =IF(B29<>"",IF(K29="",J28,IF((H28-J28)/H28<-0.5,MAX(H28,Summary!$D$7),MAX(H28,J28))),"") -> 1103 | L29: 0.01064207166
A30: 29 | B30: 2013-01-05 | D30: =IF(B30<>"",IF(B30<>B29,ROUNDUP(MIN(1%*J30+(J30-H29)/Summary!$I$7,5%*H29),0),D29),0) -> 12 | F30: N | G30: -12 | H30: 1115.6 | I30: 4 | J30: =IF(B30<>"",IF(K30="",J29,IF((H29-J29)/H29<-0.5,MAX(H29,Summary!$D$7),MAX(H29,J29))),"") -> 1103 | L30: 0.01075654356
A31: 30 | B31: 2013-01-05 | D31: =IF(B31<>"",IF(B31<>B30,ROUNDUP(MIN(1%*J31+(J31-H30)/Summary!$I$7,5%*H30),0),D30),0) -> 12 | F31: N | G31: -12 | H31: 1103.6 | I31: 5 | J31: =IF(B31<>"",IF(K31="",J30,IF((H30-J30)/H30<-0.5,MAX(H30,Summary!$D$7),MAX(H30,J30))),"") -> 1103 | L31: 0.01087350489
A32: 31 | B32: 2013-01-05 | D32: =IF(B32<>"",IF(B32<>B31,ROUNDUP(MIN(1%*J32+(J32-H31)/Summary!$I$7,5%*H31),0),D31),0) -> 12 | E32: 2 | F32: Y | G32: 12 | H32: 1115.6 | I32: 6 | J32: =IF(B32<>"",IF(K32="",J31,IF((H31-J31)/H31<-0.5,MAX(H31,Summary!$D$7),MAX(H31,J31))),"") -> 1103 | L32: 0.01075654356
A33: 32 | B33: 2013-01-05 | D33: =IF(B33<>"",IF(B33<>B32,ROUNDUP(MIN(1%*J33+(J33-H32)/Summary!$I$7,5%*H32),0),D32),0) -> 12 | E33: 2.2 | F33: Y | G33: 14.4 | H33: 1130 | I33: 7 | J33: =IF(B33<>"",IF(K33="",J32,IF((H32-J32)/H32<-0.5,MAX(H32,Summary!$D$7),MAX(H32,J32))),"") -> 1103 | L33: 0.01061946903
A34: 33 | B34: 2013-01-05 | D34: =IF(B34<>"",IF(B34<>B33,ROUNDUP(MIN(1%*J34+(J34-H33)/Summary!$I$7,5%*H33),0),D33),0) -> 12 | E34: 1.7 | F34: Y | G34: 8.4 | H34: 1138.4 | I34: 8 | J34: =IF(B34<>"",IF(K34="",J33,IF((H33-J33)/H33<-0.5,MAX(H33,Summary!$D$7),MAX(H33,J33))),"") -> 1103 | L34: 0.01054111033
A35: 34 | B35: 2013-01-05 | D35: =IF(B35<>"",IF(B35<>B34,ROUNDUP(MIN(1%*J35+(J35-H34)/Summary!$I$7,5%*H34),0),D34),0) -> 12 | E35: 1.9 | F35: Y | G35: 10.8 | H35: 1149.2 | I35: 9 | J35: =IF(B35<>"",IF(K35="",J34,IF((H34-J34)/H34<-0.5,MAX(H34,Summary!$D$7),MAX(H34,J34))),"") -> 1103 | L35: 0.01044204664
A36: 35 | B36: 2013-01-05 | D36: =IF(B36<>"",IF(B36<>B35,ROUNDUP(MIN(1%*J36+(J36-H35)/Summary!$I$7,5%*H35),0),D35),0) -> 12 | F36: N | G36: -12 | H36: 1137.2 | I36: 10 | J36: =IF(B36<>"",IF(K36="",J35,IF((H35-J35)/H35<-0.5,MAX(H35,Summary!$D$7),MAX(H35,J35))),"") -> 1103 | L36: 0.01055223356
A37: 36 | B37: 2013-01-05 | D37: =IF(B37<>"",IF(B37<>B36,ROUNDUP(MIN(1%*J37+(J37-H36)/Summary!$I$7,5%*H36),0),D36),0) -> 12 | F37: N | G37: -12 | H37: 1125.2 | I37: 11 | J37: =IF(B37<>"",IF(K37="",J36,IF((H36-J36)/H36<-0.5,MAX(H36,Summary!$D$7),MAX(H36,J36))),"") -> 1103 | L37: 0.01066477071
A38: 37 | B38: 2013-01-05 | D38: =IF(B38<>"",IF(B38<>B37,ROUNDUP(MIN(1%*J38+(J38-H37)/Summary!$I$7,5%*H37),0),D37),0) -> 12 | E38: 1.5 | F38: Y | G38: 6 | H38: 1131.2 | I38: 12 | J38: =IF(B38<>"",IF(K38="",J37,IF((H37-J37)/H37<-0.5,MAX(H37,Summary!$D$7),MAX(H37,J37))),"") -> 1103 | L38: 0.01060820368
A39: 38 | B39: 2013-01-05 | D39: =IF(B39<>"",IF(B39<>B38,ROUNDUP(MIN(1%*J39+(J39-H38)/Summary!$I$7,5%*H38),0),D38),0) -> 12 | E39: 3 | F39: Y | G39: 24 | H39: 1155.2 | I39: 13 | J39: =IF(B39<>"",IF(K39="",J38,IF((H38-J38)/H38<-0.5,MAX(H38,Summary!$D$7),MAX(H38,J38))),"") -> 1103 | L39: 0.01038781163
A40: 39 | B40: 2013-01-05 | D40: =IF(B40<>"",IF(B40<>B39,ROUNDUP(MIN(1%*J40+(J40-H39)/Summary!$I$7,5%*H39),0),D39),0) -> 12 | E40: 1.6 | F40: Y | G40: 7.2 | H40: 1162.4 | I40: 14 | J40: =IF(B40<>"",IF(K40="",J39,IF((H39-J39)/H39<-0.5,MAX(H39,Summary!$D$7),MAX(H39,J39))),"") -> 1103 | L40: 0.01032346869
A41: 40 | B41: 2013-01-05 | D41: =IF(B41<>"",IF(B41<>B40,ROUNDUP(MIN(1%*J41+(J41-H40)/Summary!$I$7,5%*H40),0),D40),0) -> 12 | F41: N | G41: -12 | H41: 1150.4 | I41: 15 | J41: =IF(B41<>"",IF(K41="",J40,IF((H40-J40)/H40<-0.5,MAX(H40,Summary!$D$7),MAX(H40,J40))),"") -> 1103 | L41: 0.01043115438
A42: 41 | B42: 2013-01-05 | D42: =IF(B42<>"",IF(B42<>B41,ROUNDUP(MIN(1%*J42+(J42-H41)/Summary!$I$7,5%*H41),0),D41),0) -> 12 | F42: N | G42: -12 | H42: 1138.4 | I42: 16 | J42: =IF(B42<>"",IF(K42="",J41,IF((H41-J41)/H41<-0.5,MAX(H41,Summary!$D$7),MAX(H41,J41))),"") -> 1103 | L42: 0.01054111033
A43: 42 | B43: 2013-01-05 | D43: =IF(B43<>"",IF(B43<>B42,ROUNDUP(MIN(1%*J43+(J43-H42)/Summary!$I$7,5%*H42),0),D42),0) -> 12 | F43: N | G43: -12 | H43: 1126.4 | I43: 17 | J43: =IF(B43<>"",IF(K43="",J42,IF((H42-J42)/H42<-0.5,MAX(H42,Summary!$D$7),MAX(H42,J42))),"") -> 1103 | L43: 0.01065340909
A44: 43 | B44: 2013-01-05 | D44: =IF(B44<>"",IF(B44<>B43,ROUNDUP(MIN(1%*J44+(J44-H43)/Summary!$I$7,5%*H43),0),D43),0) -> 12 | F44: N | G44: -12 | H44: 1114.4 | I44: 18 | J44: =IF(B44<>"",IF(K44="",J43,IF((H43-J43)/H43<-0.5,MAX(H43,Summary!$D$7),MAX(H43,J43))),"") -> 1103 | L44: 0.01076812635
A45: 44 | B45: 2013-01-05 | D45: =IF(B45<>"",IF(B45<>B44,ROUNDUP(MIN(1%*J45+(J45-H44)/Summary!$I$7,5%*H44),0),D44),0) -> 12 | F45: N | G45: -12 | H45: 1102.4 | I45: 19 | J45: =IF(B45<>"",IF(K45="",J44,IF((H44-J44)/H44<-0.5,MAX(H44,Summary!$D$7),MAX(H44,J44))),"") -> 1103 | L45: 0.01088534107
A46: 45 | B46: 2013-01-05 | D46: =IF(B46<>"",IF(B46<>B45,ROUNDUP(MIN(1%*J46+(J46-H45)/Summary!$I$7,5%*H45),0),D45),0) -> 12 | F46: N | G46: -12 | H46: 1090.4 | I46: 20 | J46: =IF(B46<>"",IF(K46="",J45,IF((H45-J45)/H45<-0.5,MAX(H45,Summary!$D$7),MAX(H45,J45))),"") -> 1103 | L46: 0.01100513573
A47: 46 | B47: 2013-01-05 | D47: =IF(B47<>"",IF(B47<>B46,ROUNDUP(MIN(1%*J47+(J47-H46)/Summary!$I$7,5%*H46),0),D46),0) -> 12 | E47: 1.7 | F47: Y | G47: 8.4 | H47: 1098.8 | I47: 21 | J47: =IF(B47<>"",IF(K47="",J46,IF((H46-J46)/H46<-0.5,MAX(H46,Summary!$D$7),MAX(H46,J46))),"") -> 1103 | L47: 0.01092100473
A48: 47 | B48: 2013-01-06 | D48: =IF(B48<>"",IF(B48<>B47,ROUNDUP(MIN(1%*J48+(J48-H47)/Summary!$I$7,5%*H47),0),D47),0) -> 12 | F48: N | G48: -12 | H48: 1086.8 | I48: 1 | J48: =IF(B48<>"",IF(K48="",J47,IF((H47-J47)/H47<-0.5,MAX(H47,Summary!$D$7),MAX(H47,J47))),"") -> 1103 | K48: Y | L48: 0.01104158999
A49: 48 | B49: 2013-01-06 | D49: =IF(B49<>"",IF(B49<>B48,ROUNDUP(MIN(1%*J49+(J49-H48)/Summary!$I$7,5%*H48),0),D48),0) -> 12 | F49: N | G49: -12 | H49: 1074.8 | I49: 2 | J49: =IF(B49<>"",IF(K49="",J48,IF((H48-J48)/H48<-0.5,MAX(H48,Summary!$D$7),MAX(H48,J48))),"") -> 1103 | L49: 0.01116486788
A50: 49 | B50: 2013-01-06 | D50: =IF(B50<>"",IF(B50<>B49,ROUNDUP(MIN(1%*J50+(J50-H49)/Summary!$I$7,5%*H49),0),D49),0) -> 12 | F50: N | G50: -12 | H50: 1062.8 | I50: 3 | J50: =IF(B50<>"",IF(K50="",J49,IF((H49-J49)/H49<-0.5,MAX(H49,Summary!$D$7),MAX(H49,J49))),"") -> 1103 | L50: 0.01129092962
A51: 50 | B51: 2013-01-06 | D51: =IF(B51<>"",IF(B51<>B50,ROUNDUP(MIN(1%*J51+(J51-H50)/Summary!$I$7,5%*H50),0),D50),0) -> 12 | F51: N | G51: -12 | H51: 1050.8 | I51: 4 | J51: =IF(B51<>"",IF(K51="",J50,IF((H50-J50)/H50<-0.5,MAX(H50,Summary!$D$7),MAX(H50,J50))),"") -> 1103 | L51: 0.01141987057
A52: 51 | B52: 2013-01-06 | D52: =IF(B52<>"",IF(B52<>B51,ROUNDUP(MIN(1%*J52+(J52-H51)/Summary!$I$7,5%*H51),0),D51),0) -> 12 | F52: N | G52: -12 | H52: 1038.8 | I52: 5 | J52: =IF(B52<>"",IF(K52="",J51,IF((H51-J51)/H51<-0.5,MAX(H51,Summary!$D$7),MAX(H51,J51))),"") -> 1103 | L52: 0.01155179053
A53: 52 | B53: 2013-01-06 | D53: =IF(B53<>"",IF(B53<>B52,ROUNDUP(MIN(1%*J53+(J53-H52)/Summary!$I$7,5%*H52),0),D52),0) -> 12 | E53: 2.1 | F53: Y | G53: 13.2 | H53: 1052 | I53: 6 | J53: =IF(B53<>"",IF(K53="",J52,IF((H52-J52)/H52<-0.5,MAX(H52,Summary!$D$7),MAX(H52,J52))),"") -> 1103 | L53: 0.01140684411
A54: 53 | B54: 2013-01-06 | D54: =IF(B54<>"",IF(B54<>B53,ROUNDUP(MIN(1%*J54+(J54-H53)/Summary!$I$7,5%*H53),0),D53),0) -> 12 | F54: N | G54: -12 | H54: 1040 | I54: 7 | J54: =IF(B54<>"",IF(K54="",J53,IF((H53-J53)/H53<-0.5,MAX(H53,Summary!$D$7),MAX(H53,J53))),"") -> 1103 | L54: 0.01153846154
A55: 54 | B55: 2013-01-06 | D55: =IF(B55<>"",IF(B55<>B54,ROUNDUP(MIN(1%*J55+(J55-H54)/Summary!$I$7,5%*H54),0),D54),0) -> 12 | F55: N | G55: -12 | H55: 1028 | I55: 8 | J55: =IF(B55<>"",IF(K55="",J54,IF((H54-J54)/H54<-0.5,MAX(H54,Summary!$D$7),MAX(H54,J54))),"") -> 1103 | L55: 0.01167315175
A56: 55 | B56: 2013-01-08 | D56: =IF(B56<>"",IF(B56<>B55,ROUNDUP(MIN(1%*J56+(J56-H55)/Summary!$I$7,5%*H55),0),D55),0) -> 27 | F56: N | G56: -27 | H56: 1001 | I56: 1 | J56: =IF(B56<>"",IF(K56="",J55,IF((H55-J55)/H55<-0.5,MAX(H55,Summary!$D$7),MAX(H55,J55))),"") -> 1103 | K56: Y | L56: 0.02697302697
A57: 56 | B57: 2013-01-08 | D57: =IF(B57<>"",IF(B57<>B56,ROUNDUP(MIN(1%*J57+(J57-H56)/Summary!$I$7,5%*H56),0),D56),0) -> 27 | E57: 2.8 | F57: Y | G57: 48.6 | H57: 1049.6 | I57: 2 | J57: =IF(B57<>"",IF(K57="",J56,IF((H56-J56)/H56<-0.5,MAX(H56,Summary!$D$7),MAX(H56,J56))),"") -> 1103 | L57: 0.02572408537
A58: 57 | B58: 2013-01-09 | D58: =IF(B58<>"",IF(B58<>B57,ROUNDUP(MIN(1%*J58+(J58-H57)/Summary!$I$7,5%*H57),0),D57),0) -> 22 | F58: N | G58: -22 | H58: 1027.6 | I58: 1 | J58: =IF(B58<>"",IF(K58="",J57,IF((H57-J57)/H57<-0.5,MAX(H57,Summary!$D$7),MAX(H57,J57))),"") -> 1103 | K58: Y | L58: 0.0214091086
A59: 58 | B59: 2013-01-09 | D59: =IF(B59<>"",IF(B59<>B58,ROUNDUP(MIN(1%*J59+(J59-H58)/Summary!$I$7,5%*H58),0),D58),0) -> 22 | F59: N | G59: -22 | H59: 1005.6 | I59: 2 | J59: =IF(B59<>"",IF(K59="",J58,IF((H58-J58)/H58<-0.5,MAX(H58,Summary!$D$7),MAX(H58,J58))),"") -> 1103 | L59: 0.02187748608
A60: 59 | B60: 2013-01-09 | D60: =IF(B60<>"",IF(B60<>B59,ROUNDUP(MIN(1%*J60+(J60-H59)/Summary!$I$7,5%*H59),0),D59),0) -> 22 | E60: 5.7 | F60: Y | G60: 103.4 | H60: 1109 | I60: 3 | J60: =IF(B60<>"",IF(K60="",J59,IF((H59-J59)/H59<-0.5,MAX(H59,Summary!$D$7),MAX(H59,J59))),"") -> 1103 | L60: 0.01983769161
A61: 60 | B61: 2013-01-09 | D61: =IF(B61<>"",IF(B61<>B60,ROUNDUP(MIN(1%*J61+(J61-H60)/Summary!$I$7,5%*H60),0),D60),0) -> 22 | F61: N | G61: -22 | H61: 1087 | I61: 4 | J61: =IF(B61<>"",IF(K61="",J60,IF((H60-J60)/H60<-0.5,MAX(H60,Summary!$D$7),MAX(H60,J60))),"") -> 1103 | L61: 0.02023919043
A62: 61 | B62: 2013-01-09 | D62: =IF(B62<>"",IF(B62<>B61,ROUNDUP(MIN(1%*J62+(J62-H61)/Summary!$I$7,5%*H61),0),D61),0) -> 22 | F62: N | G62: -22 | H62: 1065 | I62: 5 | J62: =IF(B62<>"",IF(K62="",J61,IF((H61-J61)/H61<-0.5,MAX(H61,Summary!$D$7),MAX(H61,J61))),"") -> 1103 | L62: 0.020657277
A63: 62 | B63: 2013-01-10 | D63: =IF(B63<>"",IF(B63<>B62,ROUNDUP(MIN(1%*J63+(J63-H62)/Summary!$I$7,5%*H62),0),D62),0) -> 19 | F63: N | G63: -19 | H63: 1046 | I63: 1 | J63: =IF(B63<>"",IF(K63="",J62,IF((H62-J62)/H62<-0.5,MAX(H62,Summary!$D$7),MAX(H62,J62))),"") -> 1103 | K63: Y | L63: 0.01816443595
A64: 63 | B64: 2013-01-10 | D64: =IF(B64<>"",IF(B64<>B63,ROUNDUP(MIN(1%*J64+(J64-H63)/Summary!$I$7,5%*H63),0),D63),0) -> 19 | F64: N | G64: -19 | H64: 1027 | I64: 2 | J64: =IF(B64<>"",IF(K64="",J63,IF((H63-J63)/H63<-0.5,MAX(H63,Summary!$D$7),MAX(H63,J63))),"") -> 1103 | L64: 0.01850048685
A65: 64 | B65: 2013-01-10 | D65: =IF(B65<>"",IF(B65<>B64,ROUNDUP(MIN(1%*J65+(J65-H64)/Summary!$I$7,5%*H64),0),D64),0) -> 19 | F65: N | G65: -19 | H65: 1008 | I65: 3 | J65: =IF(B65<>"",IF(K65="",J64,IF((H64-J64)/H64<-0.5,MAX(H64,Summary!$D$7),MAX(H64,J64))),"") -> 1103 | L65: 0.01884920635
A66: 65 | B66: 2013-01-10 | D66: =IF(B66<>"",IF(B66<>B65,ROUNDUP(MIN(1%*J66+(J66-H65)/Summary!$I$7,5%*H65),0),D65),0) -> 19 | E66: 3.1 | F66: =IF(E66>0,"Y","N") -> Y | G66: =IF(F66="Y",D66*(E66-1),IF(F66="N",-D66,0)) -> 39.9 | H66: 1047.9 | I66: 4 | J66: =IF(B66<>"",IF(K66="",J65,IF((H65-J65)/H65<-0.5,MAX(H65,Summary!$D$7),MAX(H65,J65))),"") -> 1103 | L66: 0.0181315011
A67: 66 | B67: 2013-01-10 | D67: =IF(B67<>"",IF(B67<>B66,ROUNDUP(MIN(1%*J67+(J67-H66)/Summary!$I$7,5%*H66),0),D66),0) -> 19 | F67: N | G67: -19 | H67: =SUM(H66,G67) -> 1028.9 | I67: =IF(B67<>"",IF(B67<>B66,1,I66+1),"") -> 5 | J67: =IF(B67<>"",IF(K67="",J66,IF((H66-J66)/H66<-0.5,MAX(H66,Summary!$D$7),MAX(H66,J66))),"") -> 1103 | K67: =IF(AND(B67<>"",B67<>B66),"Y","") ->  | L67: 0.01846632326
A68: 67 | B68: 2013-01-11 | D68: =IF(B68<>"",IF(B68<>B67,ROUNDUP(MIN(1%*J68+(J68-H67)/Summary!$I$7,5%*H67),0),D67),0) -> 26 | E68: 2.8 | F68: Y | G68: 46.8 | H68: 1075.7 | I68: 1 | J68: =IF(B68<>"",IF(K68="",J67,IF((H67-J67)/H67<-0.5,MAX(H67,Summary!$D$7),MAX(H67,J67))),"") -> 1103 | K68: Y | L68: =IF(D68<>0,D68/H68,"") -> 0.02417030771
A69: 68 | B69: 2013-01-11 | D69: =IF(B69<>"",IF(B69<>B68,ROUNDUP(MIN(1%*J69+(J69-H68)/Summary!$I$7,5%*H68),0),D68),0) -> 26 | E69: 1.2 | F69: Y | G69: 5.2 | H69: 1080.9 | I69: 2 | J69: =IF(B69<>"",IF(K69="",J68,IF((H68-J68)/H68<-0.5,MAX(H68,Summary!$D$7),MAX(H68,J68))),"") -> 1103 | L69: 0.02405402905
A70: 69 | B70: 2013-01-11 | D70: =IF(B70<>"",IF(B70<>B69,ROUNDUP(MIN(1%*J70+(J70-H69)/Summary!$I$7,5%*H69),0),D69),0) -> 26 | F70: N | G70: -26 | H70: 1054.9 | I70: 3 | J70: =IF(B70<>"",IF(K70="",J69,IF((H69-J69)/H69<-0.5,MAX(H69,Summary!$D$7),MAX(H69,J69))),"") -> 1103 | L70: 0.02464688596
A71: 70 | B71: 2013-01-11 | D71: =IF(B71<>"",IF(B71<>B70,ROUNDUP(MIN(1%*J71+(J71-H70)/Summary!$I$7,5%*H70),0),D70),0) -> 26 | F71: N | G71: -26 | H71: 1028.9 | I71: 4 | J71: =IF(B71<>"",IF(K71="",J70,IF((H70-J70)/H70<-0.5,MAX(H70,Summary!$D$7),MAX(H70,J70))),"") -> 1103 | L71: 0.02526970551
A72: 71 | B72: 2013-01-11 | D72: =IF(B72<>"",IF(B72<>B71,ROUNDUP(MIN(1%*J72+(J72-H71)/Summary!$I$7,5%*H71),0),D71),0) -> 26 | F72: N | G72: -26 | H72: 1002.9 | I72: 5 | J72: =IF(B72<>"",IF(K72="",J71,IF((H71-J71)/H71<-0.5,MAX(H71,Summary!$D$7),MAX(H71,J71))),"") -> 1103 | L72: 0.02592481803
A73: 72 | B73: 2013-01-12 | D73: =IF(B73<>"",IF(B73<>B72,ROUNDUP(MIN(1%*J73+(J73-H72)/Summary!$I$7,5%*H72),0),D72),0) -> 32 | F73: N | G73: -32 | H73: 970.9 | I73: 1 | J73: =IF(B73<>"",IF(K73="",J72,IF((H72-J72)/H72<-0.5,MAX(H72,Summary!$D$7),MAX(H72,J72))),"") -> 1103 | K73: Y | L73: 0.0329591101
A74: 73 | B74: 2013-01-12 | D74: =IF(B74<>"",IF(B74<>B73,ROUNDUP(MIN(1%*J74+(J74-H73)/Summary!$I$7,5%*H73),0),D73),0) -> 32 | F74: N | G74: -32 | H74: 938.9 | I74: 2 | J74: =IF(B74<>"",IF(K74="",J73,IF((H73-J73)/H73<-0.5,MAX(H73,Summary!$D$7),MAX(H73,J73))),"") -> 1103 | L74: 0.03408243689
A75: 74 | B75: 2013-01-12 | D75: =IF(B75<>"",IF(B75<>B74,ROUNDUP(MIN(1%*J75+(J75-H74)/Summary!$I$7,5%*H74),0),D74),0) -> 32 | E75: 5.8 | F75: Y | G75: 153.6 | H75: 1092.5 | I75: 3 | J75: =IF(B75<>"",IF(K75="",J74,IF((H74-J74)/H74<-0.5,MAX(H74,Summary!$D$7),MAX(H74,J74))),"") -> 1103 | L75: 0.02929061785
A76: 75 | B76: 2013-01-12 | D76: =IF(B76<>"",IF(B76<>B75,ROUNDUP(MIN(1%*J76+(J76-H75)/Summary!$I$7,5%*H75),0),D75),0) -> 32 | F76: N | G76: -32 | H76: 1060.5 | I76: 4 | J76: =IF(B76<>"",IF(K76="",J75,IF((H75-J75)/H75<-0.5,MAX(H75,Summary!$D$7),MAX(H75,J75))),"") -> 1103 | L76: 0.03017444602
A77: 76 | B77: 2013-01-12 | D77: =IF(B77<>"",IF(B77<>B76,ROUNDUP(MIN(1%*J77+(J77-H76)/Summary!$I$7,5%*H76),0),D76),0) -> 32 | E77: 2.3 | F77: Y | G77: 41.6 | H77: 1102.1 | I77: 5 | J77: =IF(B77<>"",IF(K77="",J76,IF((H76-J76)/H76<-0.5,MAX(H76,Summary!$D$7),MAX(H76,J76))),"") -> 1103 | L77: 0.02903547772
A78: 77 | B78: 2013-01-12 | D78: =IF(B78<>"",IF(B78<>B77,ROUNDUP(MIN(1%*J78+(J78-H77)/Summary!$I$7,5%*H77),0),D77),0) -> 32 | F78: N | G78: -32 | H78: 1070.1 | I78: 6 | J78: =IF(B78<>"",IF(K78="",J77,IF((H77-J77)/H77<-0.5,MAX(H77,Summary!$D$7),MAX(H77,J77))),"") -> 1103 | L78: 0.02990374731
A79: 78 | B79: 2013-01-12 | D79: =IF(B79<>"",IF(B79<>B78,ROUNDUP(MIN(1%*J79+(J79-H78)/Summary!$I$7,5%*H78),0),D78),0) -> 32 | F79: N | G79: -32 | H79: 1038.1 | I79: 7 | J79: =IF(B79<>"",IF(K79="",J78,IF((H78-J78)/H78<-0.5,MAX(H78,Summary!$D$7),MAX(H78,J78))),"") -> 1103 | L79: 0.03082554667
A80: 79 | B80: 2013-01-12 | D80: =IF(B80<>"",IF(B80<>B79,ROUNDUP(MIN(1%*J80+(J80-H79)/Summary!$I$7,5%*H79),0),D79),0) -> 32 | E80: 3.7 | F80: Y | G80: 86.4 | H80: 1124.5 | I80: 8 | J80: =IF(B80<>"",IF(K80="",J79,IF((H79-J79)/H79<-0.5,MAX(H79,Summary!$D$7),MAX(H79,J79))),"") -> 1103 | L80: 0.02845709204
A81: 80 | B81: 2013-01-12 | D81: =IF(B81<>"",IF(B81<>B80,ROUNDUP(MIN(1%*J81+(J81-H80)/Summary!$I$7,5%*H80),0),D80),0) -> 32 | E81: 3.5 | F81: Y | G81: 80 | H81: 1204.5 | I81: 9 | J81: =IF(B81<>"",IF(K81="",J80,IF((H80-J80)/H80<-0.5,MAX(H80,Summary!$D$7),MAX(H80,J80))),"") -> 1103 | L81: 0.02656704027
A82: 81 | B82: 2013-01-12 | D82: =IF(B82<>"",IF(B82<>B81,ROUNDUP(MIN(1%*J82+(J82-H81)/Summary!$I$7,5%*H81),0),D81),0) -> 32 | E82: 5.8 | F82: Y | G82: 153.6 | H82: 1358.1 | I82: 10 | J82: =IF(B82<>"",IF(K82="",J81,IF((H81-J81)/H81<-0.5,MAX(H81,Summary!$D$7),MAX(H81,J81))),"") -> 1103 | L82: 0.02356232973
A83: 82 | B83: 2013-01-12 | D83: =IF(B83<>"",IF(B83<>B82,ROUNDUP(MIN(1%*J83+(J83-H82)/Summary!$I$7,5%*H82),0),D82),0) -> 32 | E83: 3.1 | F83: Y | G83: 67.2 | H83: 1425.3 | I83: 11 | J83: =IF(B83<>"",IF(K83="",J82,IF((H82-J82)/H82<-0.5,MAX(H82,Summary!$D$7),MAX(H82,J82))),"") -> 1103 | L83: 0.02245141374
A84: 83 | B84: 2013-01-12 | D84: =IF(B84<>"",IF(B84<>B83,ROUNDUP(MIN(1%*J84+(J84-H83)/Summary!$I$7,5%*H83),0),D83),0) -> 32 | F84: N | G84: -32 | H84: 1393.3 | I84: 12 | J84: =IF(B84<>"",IF(K84="",J83,IF((H83-J83)/H83<-0.5,MAX(H83,Summary!$D$7),MAX(H83,J83))),"") -> 1103 | L84: 0.02296705663
A85: 84 | B85: 2013-01-12 | D85: =IF(B85<>"",IF(B85<>B84,ROUNDUP(MIN(1%*J85+(J85-H84)/Summary!$I$7,5%*H84),0),D84),0) -> 32 | E85: 2.2 | F85: Y | G85: 38.4 | H85: 1431.7 | I85: 13 | J85: =IF(B85<>"",IF(K85="",J84,IF((H84-J84)/H84<-0.5,MAX(H84,Summary!$D$7),MAX(H84,J84))),"") -> 1103 | L85: 0.0223510512
A86: 85 | B86: 2013-01-13 | D86: =IF(B86<>"",IF(B86<>B85,ROUNDUP(MIN(1%*J86+(J86-H85)/Summary!$I$7,5%*H85),0),D85),0) -> 15 | F86: N | G86: -15 | H86: 1416.7 | I86: 1 | J86: =IF(B86<>"",IF(K86="",J85,IF((H85-J85)/H85<-0.5,MAX(H85,Summary!$D$7),MAX(H85,J85))),"") -> 1431.7 | K86: Y | L86: 0.01058798617
A87: 86 | D87: =IF(B87<>"",IF(B87<>B86,ROUNDUP(MIN(1%*J87+(J87-H86)/Summary!$I$7,5%*H86),0),D86),0) -> 0 | F87: N | G87: 0 | H87: 1416.7 | J87: =IF(B87<>"",IF(K87="",J86,IF((H86-J86)/H86<-0.5,MAX(H86,Summary!$D$7),MAX(H86,J86))),"") -> 
A88: 87 | D88: =IF(B88<>"",IF(B88<>B87,ROUNDUP(MIN(1%*J88+(J88-H87)/Summary!$I$7,5%*H87),0),D87),0) -> 0 | F88: N | G88: 0 | H88: 1416.7 | J88: =IF(B88<>"",IF(K88="",J87,IF((H87-J87)/H87<-0.5,MAX(H87,Summary!$D$7),MAX(H87,J87))),"") -> 
A89: 88 | D89: =IF(B89<>"",IF(B89<>B88,ROUNDUP(MIN(1%*J89+(J89-H88)/Summary!$I$7,5%*H88),0),D88),0) -> 0 | F89: N | G89: 0 | H89: 1416.7 | J89: =IF(B89<>"",IF(K89="",J88,IF((H88-J88)/H88<-0.5,MAX(H88,Summary!$D$7),MAX(H88,J88))),"") -> 
A90: 89 | D90: =IF(B90<>"",IF(B90<>B89,ROUNDUP(MIN(1%*J90+(J90-H89)/Summary!$I$7,5%*H89),0),D89),0) -> 0 | F90: N | G90: 0 | H90: 1416.7 | J90: =IF(B90<>"",IF(K90="",J89,IF((H89-J89)/H89<-0.5,MAX(H89,Summary!$D$7),MAX(H89,J89))),"") -> 
A91: 90 | D91: =IF(B91<>"",IF(B91<>B90,ROUNDUP(MIN(1%*J91+(J91-H90)/Summary!$I$7,5%*H90),0),D90),0) -> 0 | F91: N | G91: 0 | H91: 1416.7 | J91: =IF(B91<>"",IF(K91="",J90,IF((H90-J90)/H90<-0.5,MAX(H90,Summary!$D$7),MAX(H90,J90))),"") -> 
A92: 91 | D92: =IF(B92<>"",IF(B92<>B91,ROUNDUP(MIN(1%*J92+(J92-H91)/Summary!$I$7,5%*H91),0),D91),0) -> 0 | F92: N | G92: 0 | H92: 1416.7 | J92: =IF(B92<>"",IF(K92="",J91,IF((H91-J91)/H91<-0.5,MAX(H91,Summary!$D$7),MAX(H91,J91))),"") -> 
A93: 92 | D93: =IF(B93<>"",IF(B93<>B92,ROUNDUP(MIN(1%*J93+(J93-H92)/Summary!$I$7,5%*H92),0),D92),0) -> 0 | F93: N | G93: 0 | H93: 1416.7 | J93: =IF(B93<>"",IF(K93="",J92,IF((H92-J92)/H92<-0.5,MAX(H92,Summary!$D$7),MAX(H92,J92))),"") -> 
A94: 93 | D94: =IF(B94<>"",IF(B94<>B93,ROUNDUP(MIN(1%*J94+(J94-H93)/Summary!$I$7,5%*H93),0),D93),0) -> 0 | F94: N | G94: 0 | H94: 1416.7 | J94: =IF(B94<>"",IF(K94="",J93,IF((H93-J93)/H93<-0.5,MAX(H93,Summary!$D$7),MAX(H93,J93))),"") -> 
A95: 94 | D95: =IF(B95<>"",IF(B95<>B94,ROUNDUP(MIN(1%*J95+(J95-H94)/Summary!$I$7,5%*H94),0),D94),0) -> 0 | F95: N | G95: 0 | H95: 1416.7 | J95: =IF(B95<>"",IF(K95="",J94,IF((H94-J94)/H94<-0.5,MAX(H94,Summary!$D$7),MAX(H94,J94))),"") -> 
A96: 95 | D96: =IF(B96<>"",IF(B96<>B95,ROUNDUP(MIN(1%*J96+(J96-H95)/Summary!$I$7,5%*H95),0),D95),0) -> 0 | F96: N | G96: 0 | H96: 1416.7 | J96: =IF(B96<>"",IF(K96="",J95,IF((H95-J95)/H95<-0.5,MAX(H95,Summary!$D$7),MAX(H95,J95))),"") -> 
A97: 96 | D97: =IF(B97<>"",IF(B97<>B96,ROUNDUP(MIN(1%*J97+(J97-H96)/Summary!$I$7,5%*H96),0),D96),0) -> 0 | F97: N | G97: 0 | H97: 1416.7 | J97: =IF(B97<>"",IF(K97="",J96,IF((H96-J96)/H96<-0.5,MAX(H96,Summary!$D$7),MAX(H96,J96))),"") -> 
A98: 97 | D98: =IF(B98<>"",IF(B98<>B97,ROUNDUP(MIN(1%*J98+(J98-H97)/Summary!$I$7,5%*H97),0),D97),0) -> 0 | F98: N | G98: 0 | H98: 1416.7 | J98: =IF(B98<>"",IF(K98="",J97,IF((H97-J97)/H97<-0.5,MAX(H97,Summary!$D$7),MAX(H97,J97))),"") -> 
A99: 98 | D99: =IF(B99<>"",IF(B99<>B98,ROUNDUP(MIN(1%*J99+(J99-H98)/Summary!$I$7,5%*H98),0),D98),0) -> 0 | F99: N | G99: 0 | H99: 1416.7 | J99: =IF(B99<>"",IF(K99="",J98,IF((H98-J98)/H98<-0.5,MAX(H98,Summary!$D$7),MAX(H98,J98))),"") -> 
A100: 99 | D100: =IF(B100<>"",IF(B100<>B99,ROUNDUP(MIN(1%*J100+(J100-H99)/Summary!$I$7,5%*H99),0),D99),0) -> 0 | F100: N | G100: 0 | H100: 1416.7 | J100: =IF(B100<>"",IF(K100="",J99,IF((H99-J99)/H99<-0.5,MAX(H99,Summary!$D$7),MAX(H99,J99))),"") -> 
A101: 100 | D101: =IF(B101<>"",IF(B101<>B100,ROUNDUP(MIN(1%*J101+(J101-H100)/Summary!$I$7,5%*H100),0),D100),0) -> 0 | F101: N | G101: 0 | H101: 1416.7 | J101: =IF(B101<>"",IF(K101="",J100,IF((H100-J100)/H100<-0.5,MAX(H100,Summary!$D$7),MAX(H100,J100))),"") -> 
A102: 101 | D102: =IF(B102<>"",IF(B102<>B101,ROUNDUP(MIN(1%*J102+(J102-H101)/Summary!$I$7,5%*H101),0),D101),0) -> 0 | F102: N | G102: 0 | H102: 1416.7 | J102: =IF(B102<>"",IF(K102="",J101,IF((H101-J101)/H101<-0.5,MAX(H101,Summary!$D$7),MAX(H101,J101))),"") -> 
A103: 102 | D103: =IF(B103<>"",IF(B103<>B102,ROUNDUP(MIN(1%*J103+(J103-H102)/Summary!$I$7,5%*H102),0),D102),0) -> 0 | F103: N | G103: 0 | H103: 1416.7 | J103: =IF(B103<>"",IF(K103="",J102,IF((H102-J102)/H102<-0.5,MAX(H102,Summary!$D$7),MAX(H102,J102))),"") -> 
A104: 103 | D104: =IF(B104<>"",IF(B104<>B103,ROUNDUP(MIN(1%*J104+(J104-H103)/Summary!$I$7,5%*H103),0),D103),0) -> 0 | F104: N | G104: 0 | H104: 1416.7 | J104: =IF(B104<>"",IF(K104="",J103,IF((H103-J103)/H103<-0.5,MAX(H103,Summary!$D$7),MAX(H103,J103))),"") -> 
A105: 104 | D105: =IF(B105<>"",IF(B105<>B104,ROUNDUP(MIN(1%*J105+(J105-H104)/Summary!$I$7,5%*H104),0),D104),0) -> 0 | F105: N | G105: 0 | H105: 1416.7 | J105: =IF(B105<>"",IF(K105="",J104,IF((H104-J104)/H104<-0.5,MAX(H104,Summary!$D$7),MAX(H104,J104))),"") -> 
A106: 105 | D106: =IF(B106<>"",IF(B106<>B105,ROUNDUP(MIN(1%*J106+(J106-H105)/Summary!$I$7,5%*H105),0),D105),0) -> 0 | F106: N | G106: 0 | H106: 1416.7 | J106: =IF(B106<>"",IF(K106="",J105,IF((H105-J105)/H105<-0.5,MAX(H105,Summary!$D$7),MAX(H105,J105))),"") -> 
A107: 106 | D107: =IF(B107<>"",IF(B107<>B106,ROUNDUP(MIN(1%*J107+(J107-H106)/Summary!$I$7,5%*H106),0),D106),0) -> 0 | F107: N | G107: 0 | H107: 1416.7 | J107: =IF(B107<>"",IF(K107="",J106,IF((H106-J106)/H106<-0.5,MAX(H106,Summary!$D$7),MAX(H106,J106))),"") -> 
A108: 107 | D108: =IF(B108<>"",IF(B108<>B107,ROUNDUP(MIN(1%*J108+(J108-H107)/Summary!$I$7,5%*H107),0),D107),0) -> 0 | G108: 0 | H108: 1416.7 | J108: =IF(B108<>"",IF(K108="",J107,IF((H107-J107)/H107<-0.5,MAX(H107,Summary!$D$7),MAX(H107,J107))),"") -> 
A109: 108 | D109: =IF(B109<>"",IF(B109<>B108,ROUNDUP(MIN(1%*J109+(J109-H108)/Summary!$I$7,5%*H108),0),D108),0) -> 0 | G109: 0 | H109: 1416.7 | J109: =IF(B109<>"",IF(K109="",J108,IF((H108-J108)/H108<-0.5,MAX(H108,Summary!$D$7),MAX(H108,J108))),"") -> 
A110: 109 | D110: =IF(B110<>"",IF(B110<>B109,ROUNDUP(MIN(1%*J110+(J110-H109)/Summary!$I$7,5%*H109),0),D109),0) -> 0 | G110: 0 | H110: 1416.7 | J110: =IF(B110<>"",IF(K110="",J109,IF((H109-J109)/H109<-0.5,MAX(H109,Summary!$D$7),MAX(H109,J109))),"") -> 
A111: 110 | D111: =IF(B111<>"",IF(B111<>B110,ROUNDUP(MIN(1%*J111+(J111-H110)/Summary!$I$7,5%*H110),0),D110),0) -> 0 | G111: 0 | H111: 1416.7 | J111: =IF(B111<>"",IF(K111="",J110,IF((H110-J110)/H110<-0.5,MAX(H110,Summary!$D$7),MAX(H110,J110))),"") -> 
A112: 111 | D112: =IF(B112<>"",IF(B112<>B111,ROUNDUP(MIN(1%*J112+(J112-H111)/Summary!$I$7,5%*H111),0),D111),0) -> 0 | G112: 0 | H112: 1416.7 | J112: =IF(B112<>"",IF(K112="",J111,IF((H111-J111)/H111<-0.5,MAX(H111,Summary!$D$7),MAX(H111,J111))),"") -> 
A113: 112 | D113: =IF(B113<>"",IF(B113<>B112,ROUNDUP(MIN(1%*J113+(J113-H112)/Summary!$I$7,5%*H112),0),D112),0) -> 0 | G113: 0 | H113: 1416.7 | J113: =IF(B113<>"",IF(K113="",J112,IF((H112-J112)/H112<-0.5,MAX(H112,Summary!$D$7),MAX(H112,J112))),"") -> 
A114: 113 | D114: =IF(B114<>"",IF(B114<>B113,ROUNDUP(MIN(1%*J114+(J114-H113)/Summary!$I$7,5%*H113),0),D113),0) -> 0 | G114: 0 | H114: 1416.7 | J114: =IF(B114<>"",IF(K114="",J113,IF((H113-J113)/H113<-0.5,MAX(H113,Summary!$D$7),MAX(H113,J113))),"") -> 
A115: 114 | D115: =IF(B115<>"",IF(B115<>B114,ROUNDUP(MIN(1%*J115+(J115-H114)/Summary!$I$7,5%*H114),0),D114),0) -> 0 | G115: 0 | H115: 1416.7 | J115: =IF(B115<>"",IF(K115="",J114,IF((H114-J114)/H114<-0.5,MAX(H114,Summary!$D$7),MAX(H114,J114))),"") -> 
A116: 115 | D116: =IF(B116<>"",IF(B116<>B115,ROUNDUP(MIN(1%*J116+(J116-H115)/Summary!$I$7,5%*H115),0),D115),0) -> 0 | G116: 0 | H116: 1416.7 | J116: =IF(B116<>"",IF(K116="",J115,IF((H115-J115)/H115<-0.5,MAX(H115,Summary!$D$7),MAX(H115,J115))),"") -> 
A117: 116 | D117: =IF(B117<>"",IF(B117<>B116,ROUNDUP(MIN(1%*J117+(J117-H116)/Summary!$I$7,5%*H116),0),D116),0) -> 0 | G117: 0 | H117: 1416.7 | J117: =IF(B117<>"",IF(K117="",J116,IF((H116-J116)/H116<-0.5,MAX(H116,Summary!$D$7),MAX(H116,J116))),"") -> 
A118: 117 | D118: =IF(B118<>"",IF(B118<>B117,ROUNDUP(MIN(1%*J118+(J118-H117)/Summary!$I$7,5%*H117),0),D117),0) -> 0 | G118: 0 | H118: 1416.7 | J118: =IF(B118<>"",IF(K118="",J117,IF((H117-J117)/H117<-0.5,MAX(H117,Summary!$D$7),MAX(H117,J117))),"") -> 
A119: 118 | D119: =IF(B119<>"",IF(B119<>B118,ROUNDUP(MIN(1%*J119+(J119-H118)/Summary!$I$7,5%*H118),0),D118),0) -> 0 | G119: 0 | H119: 1416.7 | J119: =IF(B119<>"",IF(K119="",J118,IF((H118-J118)/H118<-0.5,MAX(H118,Summary!$D$7),MAX(H118,J118))),"") -> 
A120: 119 | D120: =IF(B120<>"",IF(B120<>B119,ROUNDUP(MIN(1%*J120+(J120-H119)/Summary!$I$7,5%*H119),0),D119),0) -> 0 | G120: 0 | H120: 1416.7 | J120: =IF(B120<>"",IF(K120="",J119,IF((H119-J119)/H119<-0.5,MAX(H119,Summary!$D$7),MAX(H119,J119))),"") -> 
A121: 120 | D121: =IF(B121<>"",IF(B121<>B120,ROUNDUP(MIN(1%*J121+(J121-H120)/Summary!$I$7,5%*H120),0),D120),0) -> 0 | G121: 0 | H121: 1416.7 | J121: =IF(B121<>"",IF(K121="",J120,IF((H120-J120)/H120<-0.5,MAX(H120,Summary!$D$7),MAX(H120,J120))),"") -> 
A122: 121 | D122: =IF(B122<>"",IF(B122<>B121,ROUNDUP(MIN(1%*J122+(J122-H121)/Summary!$I$7,5%*H121),0),D121),0) -> 0 | G122: 0 | H122: 1416.7 | J122: =IF(B122<>"",IF(K122="",J121,IF((H121-J121)/H121<-0.5,MAX(H121,Summary!$D$7),MAX(H121,J121))),"") -> 
A123: 122 | D123: =IF(B123<>"",IF(B123<>B122,ROUNDUP(MIN(1%*J123+(J123-H122)/Summary!$I$7,5%*H122),0),D122),0) -> 0 | G123: 0 | H123: 1416.7 | J123: =IF(B123<>"",IF(K123="",J122,IF((H122-J122)/H122<-0.5,MAX(H122,Summary!$D$7),MAX(H122,J122))),"") -> 
A124: 123 | D124: =IF(B124<>"",IF(B124<>B123,ROUNDUP(MIN(1%*J124+(J124-H123)/Summary!$I$7,5%*H123),0),D123),0) -> 0 | G124: 0 | H124: 1416.7 | J124: =IF(B124<>"",IF(K124="",J123,IF((H123-J123)/H123<-0.5,MAX(H123,Summary!$D$7),MAX(H123,J123))),"") -> 
A125: 124 | D125: =IF(B125<>"",IF(B125<>B124,ROUNDUP(MIN(1%*J125+(J125-H124)/Summary!$I$7,5%*H124),0),D124),0) -> 0 | G125: 0 | H125: 1416.7 | J125: =IF(B125<>"",IF(K125="",J124,IF((H124-J124)/H124<-0.5,MAX(H124,Summary!$D$7),MAX(H124,J124))),"") -> 
A126: 125 | D126: =IF(B126<>"",IF(B126<>B125,ROUNDUP(MIN(1%*J126+(J126-H125)/Summary!$I$7,5%*H125),0),D125),0) -> 0 | G126: 0 | H126: 1416.7 | J126: =IF(B126<>"",IF(K126="",J125,IF((H125-J125)/H125<-0.5,MAX(H125,Summary!$D$7),MAX(H125,J125))),"") -> 
A127: 126 | D127: =IF(B127<>"",IF(B127<>B126,ROUNDUP(MIN(1%*J127+(J127-H126)/Summary!$I$7,5%*H126),0),D126),0) -> 0 | G127: 0 | H127: 1416.7 | J127: =IF(B127<>"",IF(K127="",J126,IF((H126-J126)/H126<-0.5,MAX(H126,Summary!$D$7),MAX(H126,J126))),"") -> 
A128: 127 | D128: =IF(B128<>"",IF(B128<>B127,ROUNDUP(MIN(1%*J128+(J128-H127)/Summary!$I$7,5%*H127),0),D127),0) -> 0 | G128: 0 | H128: 1416.7 | J128: =IF(B128<>"",IF(K128="",J127,IF((H127-J127)/H127<-0.5,MAX(H127,Summary!$D$7),MAX(H127,J127))),"") -> 
A129: 128 | D129: =IF(B129<>"",IF(B129<>B128,ROUNDUP(MIN(1%*J129+(J129-H128)/Summary!$I$7,5%*H128),0),D128),0) -> 0 | G129: 0 | H129: 1416.7 | J129: =IF(B129<>"",IF(K129="",J128,IF((H128-J128)/H128<-0.5,MAX(H128,Summary!$D$7),MAX(H128,J128))),"") -> 
A130: 129 | D130: =IF(B130<>"",IF(B130<>B129,ROUNDUP(MIN(1%*J130+(J130-H129)/Summary!$I$7,5%*H129),0),D129),0) -> 0 | G130: =IF(F130="Y",D130*(E130-1),IF(F130="N",-D130,0)) -> 0 | H130: 1416.7 | J130: =IF(B130<>"",IF(K130="",J129,IF((H129-J129)/H129<-0.5,MAX(H129,Summary!$D$7),MAX(H129,J129))),"") -> 
A131: 130 | D131: =IF(B131<>"",IF(B131<>B130,ROUNDUP(MIN(1%*J131+(J131-H130)/Summary!$I$7,5%*H130),0),D130),0) -> 0 | G131: 0 | H131: =SUM(H130,G131) -> 1416.7 | I131: =IF(B131<>"",IF(B131<>B130,1,I130+1),"") ->  | J131: =IF(B131<>"",IF(K131="",J130,IF((H130-J130)/H130<-0.5,MAX(H130,Summary!$D$7),MAX(H130,J130))),"") ->  | K131: =IF(AND(B131<>"",B131<>B130),"Y","") -> 
A132: 131 | D132: =IF(B132<>"",IF(B132<>B131,ROUNDUP(MIN(1%*J132+(J132-H131)/Summary!$I$7,5%*H131),0),D131),0) -> 0 | G132: 0 | H132: 1416.7 | J132: =IF(B132<>"",IF(K132="",J131,IF((H131-J131)/H131<-0.5,MAX(H131,Summary!$D$7),MAX(H131,J131))),"") ->  | L132: =IF(D132<>0,D132/H132,"") -> 
A133: 132 | D133: =IF(B133<>"",IF(B133<>B132,ROUNDUP(MIN(1%*J133+(J133-H132)/Summary!$I$7,5%*H132),0),D132),0) -> 0 | G133: 0 | H133: 1416.7 | J133: =IF(B133<>"",IF(K133="",J132,IF((H132-J132)/H132<-0.5,MAX(H132,Summary!$D$7),MAX(H132,J132))),"") -> 
A134: 133 | D134: =IF(B134<>"",IF(B134<>B133,ROUNDUP(MIN(1%*J134+(J134-H133)/Summary!$I$7,5%*H133),0),D133),0) -> 0 | G134: 0 | H134: 1416.7 | J134: =IF(B134<>"",IF(K134="",J133,IF((H133-J133)/H133<-0.5,MAX(H133,Summary!$D$7),MAX(H133,J133))),"") -> 
A135: 134 | D135: =IF(B135<>"",IF(B135<>B134,ROUNDUP(MIN(1%*J135+(J135-H134)/Summary!$I$7,5%*H134),0),D134),0) -> 0 | G135: 0 | H135: 1416.7 | J135: =IF(B135<>"",IF(K135="",J134,IF((H134-J134)/H134<-0.5,MAX(H134,Summary!$D$7),MAX(H134,J134))),"") -> 
A136: 135 | D136: =IF(B136<>"",IF(B136<>B135,ROUNDUP(MIN(1%*J136+(J136-H135)/Summary!$I$7,5%*H135),0),D135),0) -> 0 | G136: 0 | H136: 1416.7 | J136: =IF(B136<>"",IF(K136="",J135,IF((H135-J135)/H135<-0.5,MAX(H135,Summary!$D$7),MAX(H135,J135))),"") -> 
A137: 136 | D137: =IF(B137<>"",IF(B137<>B136,ROUNDUP(MIN(1%*J137+(J137-H136)/Summary!$I$7,5%*H136),0),D136),0) -> 0 | G137: 0 | H137: 1416.7 | J137: =IF(B137<>"",IF(K137="",J136,IF((H136-J136)/H136<-0.5,MAX(H136,Summary!$D$7),MAX(H136,J136))),"") -> 
A138: 137 | D138: =IF(B138<>"",IF(B138<>B137,ROUNDUP(MIN(1%*J138+(J138-H137)/Summary!$I$7,5%*H137),0),D137),0) -> 0 | G138: 0 | H138: 1416.7 | J138: =IF(B138<>"",IF(K138="",J137,IF((H137-J137)/H137<-0.5,MAX(H137,Summary!$D$7),MAX(H137,J137))),"") -> 
A139: 138 | D139: =IF(B139<>"",IF(B139<>B138,ROUNDUP(MIN(1%*J139+(J139-H138)/Summary!$I$7,5%*H138),0),D138),0) -> 0 | G139: 0 | H139: 1416.7 | J139: =IF(B139<>"",IF(K139="",J138,IF((H138-J138)/H138<-0.5,MAX(H138,Summary!$D$7),MAX(H138,J138))),"") -> 
A140: 139 | D140: =IF(B140<>"",IF(B140<>B139,ROUNDUP(MIN(1%*J140+(J140-H139)/Summary!$I$7,5%*H139),0),D139),0) -> 0 | G140: 0 | H140: 1416.7 | J140: =IF(B140<>"",IF(K140="",J139,IF((H139-J139)/H139<-0.5,MAX(H139,Summary!$D$7),MAX(H139,J139))),"") -> 
A141: 140 | D141: =IF(B141<>"",IF(B141<>B140,ROUNDUP(MIN(1%*J141+(J141-H140)/Summary!$I$7,5%*H140),0),D140),0) -> 0 | G141: 0 | H141: 1416.7 | J141: =IF(B141<>"",IF(K141="",J140,IF((H140-J140)/H140<-0.5,MAX(H140,Summary!$D$7),MAX(H140,J140))),"") -> 
A142: 141 | D142: =IF(B142<>"",IF(B142<>B141,ROUNDUP(MIN(1%*J142+(J142-H141)/Summary!$I$7,5%*H141),0),D141),0) -> 0 | G142: 0 | H142: 1416.7 | J142: =IF(B142<>"",IF(K142="",J141,IF((H141-J141)/H141<-0.5,MAX(H141,Summary!$D$7),MAX(H141,J141))),"") -> 
A143: 142 | D143: =IF(B143<>"",IF(B143<>B142,ROUNDUP(MIN(1%*J143+(J143-H142)/Summary!$I$7,5%*H142),0),D142),0) -> 0 | G143: 0 | H143: 1416.7 | J143: =IF(B143<>"",IF(K143="",J142,IF((H142-J142)/H142<-0.5,MAX(H142,Summary!$D$7),MAX(H142,J142))),"") -> 
A144: 143 | D144: =IF(B144<>"",IF(B144<>B143,ROUNDUP(MIN(1%*J144+(J144-H143)/Summary!$I$7,5%*H143),0),D143),0) -> 0 | G144: 0 | H144: 1416.7 | J144: =IF(B144<>"",IF(K144="",J143,IF((H143-J143)/H143<-0.5,MAX(H143,Summary!$D$7),MAX(H143,J143))),"") -> 
A145: 144 | D145: =IF(B145<>"",IF(B145<>B144,ROUNDUP(MIN(1%*J145+(J145-H144)/Summary!$I$7,5%*H144),0),D144),0) -> 0 | G145: 0 | H145: 1416.7 | J145: =IF(B145<>"",IF(K145="",J144,IF((H144-J144)/H144<-0.5,MAX(H144,Summary!$D$7),MAX(H144,J144))),"") -> 
A146: 145 | D146: =IF(B146<>"",IF(B146<>B145,ROUNDUP(MIN(1%*J146+(J146-H145)/Summary!$I$7,5%*H145),0),D145),0) -> 0 | G146: 0 | H146: 1416.7 | J146: =IF(B146<>"",IF(K146="",J145,IF((H145-J145)/H145<-0.5,MAX(H145,Summary!$D$7),MAX(H145,J145))),"") -> 
A147: 146 | D147: =IF(B147<>"",IF(B147<>B146,ROUNDUP(MIN(1%*J147+(J147-H146)/Summary!$I$7,5%*H146),0),D146),0) -> 0 | G147: 0 | H147: 1416.7 | J147: =IF(B147<>"",IF(K147="",J146,IF((H146-J146)/H146<-0.5,MAX(H146,Summary!$D$7),MAX(H146,J146))),"") -> 
A148: 147 | D148: =IF(B148<>"",IF(B148<>B147,ROUNDUP(MIN(1%*J148+(J148-H147)/Summary!$I$7,5%*H147),0),D147),0) -> 0 | G148: 0 | H148: 1416.7 | J148: =IF(B148<>"",IF(K148="",J147,IF((H147-J147)/H147<-0.5,MAX(H147,Summary!$D$7),MAX(H147,J147))),"") -> 
A149: 148 | D149: =IF(B149<>"",IF(B149<>B148,ROUNDUP(MIN(1%*J149+(J149-H148)/Summary!$I$7,5%*H148),0),D148),0) -> 0 | G149: 0 | H149: 1416.7 | J149: =IF(B149<>"",IF(K149="",J148,IF((H148-J148)/H148<-0.5,MAX(H148,Summary!$D$7),MAX(H148,J148))),"") -> 
A150: 149 | D150: =IF(B150<>"",IF(B150<>B149,ROUNDUP(MIN(1%*J150+(J150-H149)/Summary!$I$7,5%*H149),0),D149),0) -> 0 | G150: 0 | H150: 1416.7 | J150: =IF(B150<>"",IF(K150="",J149,IF((H149-J149)/H149<-0.5,MAX(H149,Summary!$D$7),MAX(H149,J149))),"") -> 
A151: 150 | D151: =IF(B151<>"",IF(B151<>B150,ROUNDUP(MIN(1%*J151+(J151-H150)/Summary!$I$7,5%*H150),0),D150),0) -> 0 | G151: 0 | H151: 1416.7 | J151: =IF(B151<>"",IF(K151="",J150,IF((H150-J150)/H150<-0.5,MAX(H150,Summary!$D$7),MAX(H150,J150))),"") -> 
A152: 151 | D152: =IF(B152<>"",IF(B152<>B151,ROUNDUP(MIN(1%*J152+(J152-H151)/Summary!$I$7,5%*H151),0),D151),0) -> 0 | G152: 0 | H152: 1416.7 | J152: =IF(B152<>"",IF(K152="",J151,IF((H151-J151)/H151<-0.5,MAX(H151,Summary!$D$7),MAX(H151,J151))),"") -> 
A153: 152 | D153: =IF(B153<>"",IF(B153<>B152,ROUNDUP(MIN(1%*J153+(J153-H152)/Summary!$I$7,5%*H152),0),D152),0) -> 0 | G153: 0 | H153: 1416.7 | J153: =IF(B153<>"",IF(K153="",J152,IF((H152-J152)/H152<-0.5,MAX(H152,Summary!$D$7),MAX(H152,J152))),"") -> 
A154: 153 | D154: =IF(B154<>"",IF(B154<>B153,ROUNDUP(MIN(1%*J154+(J154-H153)/Summary!$I$7,5%*H153),0),D153),0) -> 0 | G154: 0 | H154: 1416.7 | J154: =IF(B154<>"",IF(K154="",J153,IF((H153-J153)/H153<-0.5,MAX(H153,Summary!$D$7),MAX(H153,J153))),"") -> 
A155: 154 | D155: =IF(B155<>"",IF(B155<>B154,ROUNDUP(MIN(1%*J155+(J155-H154)/Summary!$I$7,5%*H154),0),D154),0) -> 0 | G155: 0 | H155: 1416.7 | J155: =IF(B155<>"",IF(K155="",J154,IF((H154-J154)/H154<-0.5,MAX(H154,Summary!$D$7),MAX(H154,J154))),"") -> 
A156: 155 | D156: =IF(B156<>"",IF(B156<>B155,ROUNDUP(MIN(1%*J156+(J156-H155)/Summary!$I$7,5%*H155),0),D155),0) -> 0 | G156: 0 | H156: 1416.7 | J156: =IF(B156<>"",IF(K156="",J155,IF((H155-J155)/H155<-0.5,MAX(H155,Summary!$D$7),MAX(H155,J155))),"") -> 
A157: 156 | D157: =IF(B157<>"",IF(B157<>B156,ROUNDUP(MIN(1%*J157+(J157-H156)/Summary!$I$7,5%*H156),0),D156),0) -> 0 | G157: 0 | H157: 1416.7 | J157: =IF(B157<>"",IF(K157="",J156,IF((H156-J156)/H156<-0.5,MAX(H156,Summary!$D$7),MAX(H156,J156))),"") -> 
A158: 157 | D158: =IF(B158<>"",IF(B158<>B157,ROUNDUP(MIN(1%*J158+(J158-H157)/Summary!$I$7,5%*H157),0),D157),0) -> 0 | G158: 0 | H158: 1416.7 | J158: =IF(B158<>"",IF(K158="",J157,IF((H157-J157)/H157<-0.5,MAX(H157,Summary!$D$7),MAX(H157,J157))),"") -> 
A159: 158 | D159: =IF(B159<>"",IF(B159<>B158,ROUNDUP(MIN(1%*J159+(J159-H158)/Summary!$I$7,5%*H158),0),D158),0) -> 0 | G159: 0 | H159: 1416.7 | J159: =IF(B159<>"",IF(K159="",J158,IF((H158-J158)/H158<-0.5,MAX(H158,Summary!$D$7),MAX(H158,J158))),"") -> 
A160: 159 | D160: =IF(B160<>"",IF(B160<>B159,ROUNDUP(MIN(1%*J160+(J160-H159)/Summary!$I$7,5%*H159),0),D159),0) -> 0 | G160: 0 | H160: 1416.7 | J160: =IF(B160<>"",IF(K160="",J159,IF((H159-J159)/H159<-0.5,MAX(H159,Summary!$D$7),MAX(H159,J159))),"") -> 
A161: 160 | D161: =IF(B161<>"",IF(B161<>B160,ROUNDUP(MIN(1%*J161+(J161-H160)/Summary!$I$7,5%*H160),0),D160),0) -> 0 | G161: 0 | H161: 1416.7 | J161: =IF(B161<>"",IF(K161="",J160,IF((H160-J160)/H160<-0.5,MAX(H160,Summary!$D$7),MAX(H160,J160))),"") -> 
A162: 161 | D162: =IF(B162<>"",IF(B162<>B161,ROUNDUP(MIN(1%*J162+(J162-H161)/Summary!$I$7,5%*H161),0),D161),0) -> 0 | G162: 0 | H162: 1416.7 | J162: =IF(B162<>"",IF(K162="",J161,IF((H161-J161)/H161<-0.5,MAX(H161,Summary!$D$7),MAX(H161,J161))),"") -> 
A163: 162 | D163: =IF(B163<>"",IF(B163<>B162,ROUNDUP(MIN(1%*J163+(J163-H162)/Summary!$I$7,5%*H162),0),D162),0) -> 0 | G163: 0 | H163: 1416.7 | J163: =IF(B163<>"",IF(K163="",J162,IF((H162-J162)/H162<-0.5,MAX(H162,Summary!$D$7),MAX(H162,J162))),"") -> 
A164: 163 | D164: =IF(B164<>"",IF(B164<>B163,ROUNDUP(MIN(1%*J164+(J164-H163)/Summary!$I$7,5%*H163),0),D163),0) -> 0 | G164: 0 | H164: 1416.7 | J164: =IF(B164<>"",IF(K164="",J163,IF((H163-J163)/H163<-0.5,MAX(H163,Summary!$D$7),MAX(H163,J163))),"") -> 
A165: 164 | D165: =IF(B165<>"",IF(B165<>B164,ROUNDUP(MIN(1%*J165+(J165-H164)/Summary!$I$7,5%*H164),0),D164),0) -> 0 | G165: 0 | H165: 1416.7 | J165: =IF(B165<>"",IF(K165="",J164,IF((H164-J164)/H164<-0.5,MAX(H164,Summary!$D$7),MAX(H164,J164))),"") -> 
A166: 165 | D166: =IF(B166<>"",IF(B166<>B165,ROUNDUP(MIN(1%*J166+(J166-H165)/Summary!$I$7,5%*H165),0),D165),0) -> 0 | G166: 0 | H166: 1416.7 | J166: =IF(B166<>"",IF(K166="",J165,IF((H165-J165)/H165<-0.5,MAX(H165,Summary!$D$7),MAX(H165,J165))),"") -> 
A167: 166 | D167: =IF(B167<>"",IF(B167<>B166,ROUNDUP(MIN(1%*J167+(J167-H166)/Summary!$I$7,5%*H166),0),D166),0) -> 0 | G167: 0 | H167: 1416.7 | J167: =IF(B167<>"",IF(K167="",J166,IF((H166-J166)/H166<-0.5,MAX(H166,Summary!$D$7),MAX(H166,J166))),"") -> 
A168: 167 | D168: =IF(B168<>"",IF(B168<>B167,ROUNDUP(MIN(1%*J168+(J168-H167)/Summary!$I$7,5%*H167),0),D167),0) -> 0 | G168: 0 | H168: 1416.7 | J168: =IF(B168<>"",IF(K168="",J167,IF((H167-J167)/H167<-0.5,MAX(H167,Summary!$D$7),MAX(H167,J167))),"") -> 
A169: 168 | D169: =IF(B169<>"",IF(B169<>B168,ROUNDUP(MIN(1%*J169+(J169-H168)/Summary!$I$7,5%*H168),0),D168),0) -> 0 | G169: 0 | H169: 1416.7 | J169: =IF(B169<>"",IF(K169="",J168,IF((H168-J168)/H168<-0.5,MAX(H168,Summary!$D$7),MAX(H168,J168))),"") -> 
A170: 169 | D170: =IF(B170<>"",IF(B170<>B169,ROUNDUP(MIN(1%*J170+(J170-H169)/Summary!$I$7,5%*H169),0),D169),0) -> 0 | G170: 0 | H170: 1416.7 | J170: =IF(B170<>"",IF(K170="",J169,IF((H169-J169)/H169<-0.5,MAX(H169,Summary!$D$7),MAX(H169,J169))),"") -> 
A171: 170 | D171: =IF(B171<>"",IF(B171<>B170,ROUNDUP(MIN(1%*J171+(J171-H170)/Summary!$I$7,5%*H170),0),D170),0) -> 0 | G171: 0 | H171: 1416.7 | J171: =IF(B171<>"",IF(K171="",J170,IF((H170-J170)/H170<-0.5,MAX(H170,Summary!$D$7),MAX(H170,J170))),"") -> 
A172: 171 | D172: =IF(B172<>"",IF(B172<>B171,ROUNDUP(MIN(1%*J172+(J172-H171)/Summary!$I$7,5%*H171),0),D171),0) -> 0 | G172: 0 | H172: 1416.7 | J172: =IF(B172<>"",IF(K172="",J171,IF((H171-J171)/H171<-0.5,MAX(H171,Summary!$D$7),MAX(H171,J171))),"") -> 
A173: 172 | D173: =IF(B173<>"",IF(B173<>B172,ROUNDUP(MIN(1%*J173+(J173-H172)/Summary!$I$7,5%*H172),0),D172),0) -> 0 | G173: 0 | H173: 1416.7 | J173: =IF(B173<>"",IF(K173="",J172,IF((H172-J172)/H172<-0.5,MAX(H172,Summary!$D$7),MAX(H172,J172))),"") -> 
A174: 173 | D174: =IF(B174<>"",IF(B174<>B173,ROUNDUP(MIN(1%*J174+(J174-H173)/Summary!$I$7,5%*H173),0),D173),0) -> 0 | G174: 0 | H174: 1416.7 | J174: =IF(B174<>"",IF(K174="",J173,IF((H173-J173)/H173<-0.5,MAX(H173,Summary!$D$7),MAX(H173,J173))),"") -> 
A175: 174 | D175: =IF(B175<>"",IF(B175<>B174,ROUNDUP(MIN(1%*J175+(J175-H174)/Summary!$I$7,5%*H174),0),D174),0) -> 0 | G175: 0 | H175: 1416.7 | J175: =IF(B175<>"",IF(K175="",J174,IF((H174-J174)/H174<-0.5,MAX(H174,Summary!$D$7),MAX(H174,J174))),"") -> 
A176: 175 | D176: =IF(B176<>"",IF(B176<>B175,ROUNDUP(MIN(1%*J176+(J176-H175)/Summary!$I$7,5%*H175),0),D175),0) -> 0 | G176: 0 | H176: 1416.7 | J176: =IF(B176<>"",IF(K176="",J175,IF((H175-J175)/H175<-0.5,MAX(H175,Summary!$D$7),MAX(H175,J175))),"") -> 
A177: 176 | D177: =IF(B177<>"",IF(B177<>B176,ROUNDUP(MIN(1%*J177+(J177-H176)/Summary!$I$7,5%*H176),0),D176),0) -> 0 | G177: 0 | H177: 1416.7 | J177: =IF(B177<>"",IF(K177="",J176,IF((H176-J176)/H176<-0.5,MAX(H176,Summary!$D$7),MAX(H176,J176))),"") -> 
A178: 177 | D178: =IF(B178<>"",IF(B178<>B177,ROUNDUP(MIN(1%*J178+(J178-H177)/Summary!$I$7,5%*H177),0),D177),0) -> 0 | G178: 0 | H178: 1416.7 | J178: =IF(B178<>"",IF(K178="",J177,IF((H177-J177)/H177<-0.5,MAX(H177,Summary!$D$7),MAX(H177,J177))),"") -> 
A179: 178 | D179: =IF(B179<>"",IF(B179<>B178,ROUNDUP(MIN(1%*J179+(J179-H178)/Summary!$I$7,5%*H178),0),D178),0) -> 0 | G179: 0 | H179: 1416.7 | J179: =IF(B179<>"",IF(K179="",J178,IF((H178-J178)/H178<-0.5,MAX(H178,Summary!$D$7),MAX(H178,J178))),"") -> 
A180: 179 | D180: =IF(B180<>"",IF(B180<>B179,ROUNDUP(MIN(1%*J180+(J180-H179)/Summary!$I$7,5%*H179),0),D179),0) -> 0 | G180: 0 | H180: 1416.7 | J180: =IF(B180<>"",IF(K180="",J179,IF((H179-J179)/H179<-0.5,MAX(H179,Summary!$D$7),MAX(H179,J179))),"") -> 
A181: 180 | D181: =IF(B181<>"",IF(B181<>B180,ROUNDUP(MIN(1%*J181+(J181-H180)/Summary!$I$7,5%*H180),0),D180),0) -> 0 | G181: 0 | H181: 1416.7 | J181: =IF(B181<>"",IF(K181="",J180,IF((H180-J180)/H180<-0.5,MAX(H180,Summary!$D$7),MAX(H180,J180))),"") -> 
A182: 181 | D182: =IF(B182<>"",IF(B182<>B181,ROUNDUP(MIN(1%*J182+(J182-H181)/Summary!$I$7,5%*H181),0),D181),0) -> 0 | G182: 0 | H182: 1416.7 | J182: =IF(B182<>"",IF(K182="",J181,IF((H181-J181)/H181<-0.5,MAX(H181,Summary!$D$7),MAX(H181,J181))),"") -> 
A183: 182 | D183: =IF(B183<>"",IF(B183<>B182,ROUNDUP(MIN(1%*J183+(J183-H182)/Summary!$I$7,5%*H182),0),D182),0) -> 0 | G183: 0 | H183: 1416.7 | J183: =IF(B183<>"",IF(K183="",J182,IF((H182-J182)/H182<-0.5,MAX(H182,Summary!$D$7),MAX(H182,J182))),"") -> 
A184: 183 | D184: =IF(B184<>"",IF(B184<>B183,ROUNDUP(MIN(1%*J184+(J184-H183)/Summary!$I$7,5%*H183),0),D183),0) -> 0 | G184: 0 | H184: 1416.7 | J184: =IF(B184<>"",IF(K184="",J183,IF((H183-J183)/H183<-0.5,MAX(H183,Summary!$D$7),MAX(H183,J183))),"") -> 
A185: 184 | D185: =IF(B185<>"",IF(B185<>B184,ROUNDUP(MIN(1%*J185+(J185-H184)/Summary!$I$7,5%*H184),0),D184),0) -> 0 | G185: 0 | H185: 1416.7 | J185: =IF(B185<>"",IF(K185="",J184,IF((H184-J184)/H184<-0.5,MAX(H184,Summary!$D$7),MAX(H184,J184))),"") -> 
A186: 185 | D186: =IF(B186<>"",IF(B186<>B185,ROUNDUP(MIN(1%*J186+(J186-H185)/Summary!$I$7,5%*H185),0),D185),0) -> 0 | G186: 0 | H186: 1416.7 | J186: =IF(B186<>"",IF(K186="",J185,IF((H185-J185)/H185<-0.5,MAX(H185,Summary!$D$7),MAX(H185,J185))),"") -> 
A187: 186 | D187: =IF(B187<>"",IF(B187<>B186,ROUNDUP(MIN(1%*J187+(J187-H186)/Summary!$I$7,5%*H186),0),D186),0) -> 0 | G187: 0 | H187: 1416.7 | J187: =IF(B187<>"",IF(K187="",J186,IF((H186-J186)/H186<-0.5,MAX(H186,Summary!$D$7),MAX(H186,J186))),"") -> 
A188: 187 | D188: =IF(B188<>"",IF(B188<>B187,ROUNDUP(MIN(1%*J188+(J188-H187)/Summary!$I$7,5%*H187),0),D187),0) -> 0 | G188: 0 | H188: 1416.7 | J188: =IF(B188<>"",IF(K188="",J187,IF((H187-J187)/H187<-0.5,MAX(H187,Summary!$D$7),MAX(H187,J187))),"") -> 
A189: 188 | D189: =IF(B189<>"",IF(B189<>B188,ROUNDUP(MIN(1%*J189+(J189-H188)/Summary!$I$7,5%*H188),0),D188),0) -> 0 | G189: 0 | H189: 1416.7 | J189: =IF(B189<>"",IF(K189="",J188,IF((H188-J188)/H188<-0.5,MAX(H188,Summary!$D$7),MAX(H188,J188))),"") -> 
A190: 189 | D190: =IF(B190<>"",IF(B190<>B189,ROUNDUP(MIN(1%*J190+(J190-H189)/Summary!$I$7,5%*H189),0),D189),0) -> 0 | G190: 0 | H190: 1416.7 | J190: =IF(B190<>"",IF(K190="",J189,IF((H189-J189)/H189<-0.5,MAX(H189,Summary!$D$7),MAX(H189,J189))),"") -> 
A191: 190 | D191: =IF(B191<>"",IF(B191<>B190,ROUNDUP(MIN(1%*J191+(J191-H190)/Summary!$I$7,5%*H190),0),D190),0) -> 0 | G191: 0 | H191: 1416.7 | J191: =IF(B191<>"",IF(K191="",J190,IF((H190-J190)/H190<-0.5,MAX(H190,Summary!$D$7),MAX(H190,J190))),"") -> 
A192: 191 | D192: =IF(B192<>"",IF(B192<>B191,ROUNDUP(MIN(1%*J192+(J192-H191)/Summary!$I$7,5%*H191),0),D191),0) -> 0 | G192: 0 | H192: 1416.7 | J192: =IF(B192<>"",IF(K192="",J191,IF((H191-J191)/H191<-0.5,MAX(H191,Summary!$D$7),MAX(H191,J191))),"") -> 
A193: 192 | D193: =IF(B193<>"",IF(B193<>B192,ROUNDUP(MIN(1%*J193+(J193-H192)/Summary!$I$7,5%*H192),0),D192),0) -> 0 | G193: 0 | H193: 1416.7 | J193: =IF(B193<>"",IF(K193="",J192,IF((H192-J192)/H192<-0.5,MAX(H192,Summary!$D$7),MAX(H192,J192))),"") -> 
A194: 193 | D194: =IF(B194<>"",IF(B194<>B193,ROUNDUP(MIN(1%*J194+(J194-H193)/Summary!$I$7,5%*H193),0),D193),0) -> 0 | G194: =IF(F194="Y",D194*(E194-1),IF(F194="N",-D194,0)) -> 0 | H194: 1416.7 | J194: =IF(B194<>"",IF(K194="",J193,IF((H193-J193)/H193<-0.5,MAX(H193,Summary!$D$7),MAX(H193,J193))),"") -> 
A195: 194 | D195: =IF(B195<>"",IF(B195<>B194,ROUNDUP(MIN(1%*J195+(J195-H194)/Summary!$I$7,5%*H194),0),D194),0) -> 0 | G195: 0 | H195: =SUM(H194,G195) -> 1416.7 | I195: =IF(B195<>"",IF(B195<>B194,1,I194+1),"") ->  | J195: =IF(B195<>"",IF(K195="",J194,IF((H194-J194)/H194<-0.5,MAX(H194,Summary!$D$7),MAX(H194,J194))),"") ->  | K195: =IF(AND(B195<>"",B195<>B194),"Y","") -> 
A196: 195 | D196: =IF(B196<>"",IF(B196<>B195,ROUNDUP(MIN(1%*J196+(J196-H195)/Summary!$I$7,5%*H195),0),D195),0) -> 0 | G196: 0 | H196: 1416.7 | J196: =IF(B196<>"",IF(K196="",J195,IF((H195-J195)/H195<-0.5,MAX(H195,Summary!$D$7),MAX(H195,J195))),"") ->  | L196: =IF(D196<>0,D196/H196,"") -> 
A197: 196 | D197: =IF(B197<>"",IF(B197<>B196,ROUNDUP(MIN(1%*J197+(J197-H196)/Summary!$I$7,5%*H196),0),D196),0) -> 0 | G197: 0 | H197: 1416.7 | J197: =IF(B197<>"",IF(K197="",J196,IF((H196-J196)/H196<-0.5,MAX(H196,Summary!$D$7),MAX(H196,J196))),"") -> 
A198: 197 | D198: =IF(B198<>"",IF(B198<>B197,ROUNDUP(MIN(1%*J198+(J198-H197)/Summary!$I$7,5%*H197),0),D197),0) -> 0 | G198: 0 | H198: 1416.7 | J198: =IF(B198<>"",IF(K198="",J197,IF((H197-J197)/H197<-0.5,MAX(H197,Summary!$D$7),MAX(H197,J197))),"") -> 
A199: 198 | D199: =IF(B199<>"",IF(B199<>B198,ROUNDUP(MIN(1%*J199+(J199-H198)/Summary!$I$7,5%*H198),0),D198),0) -> 0 | G199: 0 | H199: 1416.7 | J199: =IF(B199<>"",IF(K199="",J198,IF((H198-J198)/H198<-0.5,MAX(H198,Summary!$D$7),MAX(H198,J198))),"") -> 
A200: 199 | D200: =IF(B200<>"",IF(B200<>B199,ROUNDUP(MIN(1%*J200+(J200-H199)/Summary!$I$7,5%*H199),0),D199),0) -> 0 | G200: 0 | H200: 1416.7 | J200: =IF(B200<>"",IF(K200="",J199,IF((H199-J199)/H199<-0.5,MAX(H199,Summary!$D$7),MAX(H199,J199))),"") -> 
... 801 more rows
